[Event "Live Chess"]
[Site "Chess.com"]
[Date "2024.06.02"]
[Round "-"]
[White "Dhaydon19"]
[Black "grillage"]
[Result "1-0"]
[WhiteElo "2686"]
[BlackElo "1860"]
[TimeControl "300"]
[EndTime "19:59:15 PDT"]
[Termination "Dhaydon19 won by checkmate"]

1. e4 {[%clk 0:04:56.4]} 1... d5 {[%clk 0:04:54.1]} 2. exd5 {[%clk 0:04:54.2]}
2... Qxd5 {[%clk 0:04:53.6]} 3. Nc3 {[%clk 0:04:53.9]} 3... Qd8 {[%clk
0:04:52.1]} 4. Nf3 {[%clk 0:04:47]} 4... Nf6 {[%clk 0:04:50.7]} 5. Bc4 {[%clk
0:04:46.1]} 5... a6 {[%clk 0:04:48.3]} 6. a4 {[%clk 0:04:44.4]} 6... Nc6 {[%clk
0:04:46.2]} 7. h3 {[%clk 0:04:43.3]} 7... Bf5 {[%clk 0:04:40.4]} 8. d3 {[%clk
0:04:35.4]} 8... e6 {[%clk 0:04:37.4]} 9. Be3 {[%clk 0:04:33.8]} 9... Bd6 {[%clk
0:04:32.1]} 10. Nh4 {[%clk 0:04:31.5]} 10... Bg6 {[%clk 0:04:30.2]} 11. Nxg6
{[%clk 0:04:28.4]} 11... hxg6 {[%clk 0:04:28.5]} 12. Qe2 {[%clk 0:04:27.4]}
12... O-O {[%clk 0:04:11.8]} 13. g4 {[%clk 0:04:23.4]} 13... Ne7 {[%clk
0:03:55.1]} 14. Bd2 {[%clk 0:04:18.3]} 14... c6 {[%clk 0:03:50.8]} 15. a5 {[%clk
0:04:16.6]} 15... Nfd5 {[%clk 0:03:47.2]} 16. Ne4 {[%clk 0:04:14.6]} 16... Be5
{[%clk 0:03:40.2]} 17. c3 {[%clk 0:04:10.9]} 17... Qc7 {[%clk 0:03:35.7]} 18. h4
{[%clk 0:04:04.5]} 18... Nf4 {[%clk 0:03:29.8]} 19. Qf3 {[%clk 0:04:00.8]} 19...
Rfd8 {[%clk 0:03:23.3]} 20. d4 {[%clk 0:03:58.2]} 20... b5 {[%clk 0:02:04.8]}
21. dxe5 {[%clk 0:03:47.2]} 21... bxc4 {[%clk 0:01:52.3]} 22. Bxf4 {[%clk
0:03:45.5]} 22... Rd3 {[%clk 0:01:49.9]} 23. Qe2 {[%clk 0:03:44.3]} 23... Rad8
{[%clk 0:01:48.5]} 24. Nd6 {[%clk 0:03:41.8]} 24... Nd5 {[%clk 0:01:41.5]} 25.
Bg3 {[%clk 0:03:39.2]} 25... Qb8 {[%clk 0:01:33.2]} 26. Nxc4 {[%clk 0:03:35.9]}
26... Ne7 {[%clk 0:01:25.1]} 27. Nd6 {[%clk 0:03:33.9]} 27... Rd5 {[%clk
0:01:21.6]} 28. h5 {[%clk 0:03:31.7]} 28... g5 {[%clk 0:01:19.3]} 29. h6 {[%clk
0:03:29.4]} 29... g6 {[%clk 0:01:18.5]} 30. h7+ {[%clk 0:03:26.1]} 30... Kh8
{[%clk 0:01:17.7]} 31. Qf3 {[%clk 0:03:25.2]} 31... Qxb2 {[%clk 0:00:50.5]} 32.
Qf6# {[%clk 0:03:22]} 1-0

[Event "Live Chess"]
[Site "Chess.com"]
[Date "2024.06.02"]
[Round "-"]
[White "ShanthamGrarks"]
[Black "KeithArkell"]
[Result "0-1"]
[WhiteElo "1896"]
[BlackElo "2433"]
[TimeControl "300"]
[EndTime "20:00:04 PDT"]
[Termination "KeithArkell won on time"]

1. d4 {[%clk 0:04:54.9]} 1... e6 {[%clk 0:04:59]} 2. Nc3 {[%clk 0:04:53.9]} 2...
Bb4 {[%clk 0:04:57.5]} 3. Bd2 {[%clk 0:04:51.5]} 3... d5 {[%clk 0:04:56.3]} 4.
Nf3 {[%clk 0:04:48.3]} 4... Nf6 {[%clk 0:04:54.7]} 5. e3 {[%clk 0:04:47.4]} 5...
b6 {[%clk 0:04:52.3]} 6. a3 {[%clk 0:04:45.8]} 6... Bxc3 {[%clk 0:04:51.2]} 7.
Bxc3 {[%clk 0:04:45.3]} 7... O-O {[%clk 0:04:50.5]} 8. Bd3 {[%clk 0:04:42.8]}
8... Ba6 {[%clk 0:04:49]} 9. O-O {[%clk 0:04:38.9]} 9... Ne4 {[%clk 0:04:47.2]}
10. Bxa6 {[%clk 0:04:32.9]} 10... Nxa6 {[%clk 0:04:45.9]} 11. Be1 {[%clk
0:04:29.5]} 11... c5 {[%clk 0:04:43.7]} 12. c3 {[%clk 0:04:25.6]} 12... Qd7
{[%clk 0:04:38.9]} 13. Ne5 {[%clk 0:04:22.5]} 13... Qb7 {[%clk 0:04:37.2]} 14.
f3 {[%clk 0:04:20.3]} 14... Nd6 {[%clk 0:04:36.4]} 15. Bg3 {[%clk 0:04:11.4]}
15... Nf5 {[%clk 0:04:35.6]} 16. Bf2 {[%clk 0:04:05.2]} 16... cxd4 {[%clk
0:04:33.8]} 17. exd4 {[%clk 0:04:01.2]} 17... f6 {[%clk 0:04:31.1]} 18. Nd3
{[%clk 0:03:56.1]} 18... Nc7 {[%clk 0:04:29.5]} 19. g4 {[%clk 0:03:51.9]} 19...
Nd6 {[%clk 0:04:28.7]} 20. Bg3 {[%clk 0:03:50.7]} 20... Rad8 {[%clk 0:04:28.2]}
21. Re1 {[%clk 0:03:45.5]} 21... Rfe8 {[%clk 0:04:26.9]} 22. Nf4 {[%clk
0:03:43.7]} 22... Nf7 {[%clk 0:04:23.5]} 23. Nh5 {[%clk 0:03:38.2]} 23... Qc6
{[%clk 0:04:21.4]} 24. Qd2 {[%clk 0:03:30.9]} 24... h6 {[%clk 0:04:15.3]} 25. h4
{[%clk 0:03:25.7]} 25... e5 {[%clk 0:04:12.2]} 26. dxe5 {[%clk 0:03:17.2]} 26...
Nxe5 {[%clk 0:04:11.3]} 27. Bxe5 {[%clk 0:03:11.4]} 27... fxe5 {[%clk
0:04:10.6]} 28. g5 {[%clk 0:02:59.1]} 28... Qg6 {[%clk 0:04:07.9]} 29. Ng3
{[%clk 0:02:53.6]} 29... hxg5 {[%clk 0:04:07]} 30. hxg5 {[%clk 0:02:51.7]} 30...
Re7 {[%clk 0:04:03.8]} 31. Kg2 {[%clk 0:02:43.5]} 31... Rf8 {[%clk 0:04:02.3]}
32. Rh1 {[%clk 0:02:40.8]} 32... Rf4 {[%clk 0:03:59.8]} 33. c4 {[%clk 0:02:33]}
33... Rxc4 {[%clk 0:03:47.6]} 34. Rac1 {[%clk 0:02:20.1]} 34... Rxc1 {[%clk
0:03:44.3]} 35. Qxc1 {[%clk 0:02:17.2]} 35... Ne6 {[%clk 0:03:39.7]} 36. Qc8+
{[%clk 0:02:14.7]} 36... Re8 {[%clk 0:03:38.4]} 37. Qd7 {[%clk 0:02:11]} 37...
Nf4+ {[%clk 0:03:36.3]} 38. Kg1 {[%clk 0:01:24.2]} 38... Rf8 {[%clk 0:03:19.2]}
39. Qe7 {[%clk 0:01:09]} 39... Qb1+ {[%clk 0:03:14.1]} 40. Nf1 {[%clk
0:01:07.5]} 40... Qxb2 {[%clk 0:03:05.6]} 41. Rh8+ {[%clk 0:01:00.5]} 41... Kxh8
{[%clk 0:03:04.9]} 42. Qxf8+ {[%clk 0:00:58]} 42... Kh7 {[%clk 0:03:04.4]} 43.
Qf5+ {[%clk 0:00:56.1]} 43... Kg8 {[%clk 0:02:59.7]} 44. Qc8+ {[%clk 0:00:47.1]}
44... Kf7 {[%clk 0:02:58.8]} 45. Qf5+ {[%clk 0:00:44.2]} 45... Ke7 {[%clk
0:02:56.5]} 46. Qg4 {[%clk 0:00:24.4]} 46... Qd4+ {[%clk 0:02:46.6]} 47. Kh1
{[%clk 0:00:18.9]} 47... Qf2 {[%clk 0:02:45.4]} 48. Nh2 {[%clk 0:00:11]} 48...
Qe1+ {[%clk 0:02:42.3]} 49. Qg1 {[%clk 0:00:10.6]} 49... Qxg1+ {[%clk
0:02:36.6]} 50. Kxg1 {[%clk 0:00:10.5]} 50... Nh3+ {[%clk 0:02:35.6]} 51. Kg2
{[%clk 0:00:09.4]} 51... Nxg5 {[%clk 0:02:35.5]} 52. Ng4 {[%clk 0:00:07.6]}
52... Ke6 {[%clk 0:02:34.4]} 53. Kg3 {[%clk 0:00:05.9]} 53... d4 {[%clk
0:02:31.9]} 54. Nf2 {[%clk 0:00:04.9]} 54... Kf5 {[%clk 0:02:30.8]} 55. Nd3
{[%clk 0:00:02.3]} 55... Ne6 {[%clk 0:02:30.1]} 0-1

[Event "Live Chess"]
[Site "Chess.com"]
[Date "2024.06.02"]
[Round "-"]
[White "booktrunk"]
[Black "RafaelRony"]
[Result "1-0"]
[WhiteElo "1510"]
[BlackElo "1063"]
[TimeControl "300"]
[EndTime "20:02:30 PDT"]
[Termination "booktrunk won on time"]

1. d4 {[%clk 0:04:55.2]} 1... d5 {[%clk 0:04:56.9]} 2. Nc3 {[%clk 0:04:45]} 2...
Nf6 {[%clk 0:04:49.8]} 3. Bf4 {[%clk 0:04:44.1]} 3... c6 {[%clk 0:04:45.1]} 4.
Nf3 {[%clk 0:04:40.3]} 4... Nbd7 {[%clk 0:04:41.8]} 5. e3 {[%clk 0:04:38.9]}
5... e6 {[%clk 0:04:26.7]} 6. Bd3 {[%clk 0:04:35.7]} 6... Be7 {[%clk 0:04:22.8]}
7. Ne5 {[%clk 0:04:32.2]} 7... Nxe5 {[%clk 0:04:20]} 8. Bxe5 {[%clk 0:04:30.7]}
8... Bd6 {[%clk 0:04:13.1]} 9. Qf3 {[%clk 0:04:02]} 9... Be7 {[%clk 0:03:32.9]}
10. O-O {[%clk 0:03:57]} 10... O-O {[%clk 0:03:26]} 11. Qh3 {[%clk 0:03:52.8]}
11... h6 {[%clk 0:03:19.8]} 12. Ne2 {[%clk 0:03:45.2]} 12... Nd7 {[%clk
0:03:15.5]} 13. Bf4 {[%clk 0:03:00.6]} 13... Bg5 {[%clk 0:02:47.5]} 14. Bxg5
{[%clk 0:02:57.5]} 14... Qxg5 {[%clk 0:02:45.1]} 15. f4 {[%clk 0:02:54.6]} 15...
Qe7 {[%clk 0:02:39]} 16. Rf3 {[%clk 0:02:53.2]} 16... Nf6 {[%clk 0:02:28.7]} 17.
Rg3 {[%clk 0:02:51.3]} 17... h5 {[%clk 0:02:06]} 18. Re1 {[%clk 0:02:42.4]}
18... e5 {[%clk 0:01:57.1]} 19. Bf5 {[%clk 0:02:39.4]} 19... Bxf5 {[%clk
0:01:53]} 20. Qxf5 {[%clk 0:02:35.8]} 20... e4 {[%clk 0:01:41]} 21. Rf1 {[%clk
0:02:14.5]} 21... g6 {[%clk 0:01:39.8]} 22. Qh3 {[%clk 0:01:53]} 22... Kh7
{[%clk 0:01:19.5]} 23. f5 {[%clk 0:01:49.8]} 23... Rg8 {[%clk 0:01:16.3]} 24.
fxg6+ {[%clk 0:01:47.7]} 24... fxg6 {[%clk 0:01:15]} 25. Nf4 {[%clk 0:01:41.1]}
25... Raf8 {[%clk 0:01:11.1]} 26. Rg5 {[%clk 0:01:31.2]} 26... Kh6 {[%clk
0:00:50.3]} 27. Re5 {[%clk 0:01:25.4]} 27... Qd7 {[%clk 0:00:42]} 28. Qxd7
{[%clk 0:01:06.4]} 28... Nxd7 {[%clk 0:00:41.9]} 29. Re7 {[%clk 0:01:00.8]}
29... Rd8 {[%clk 0:00:37.5]} 30. Ne6 {[%clk 0:00:57.3]} 30... Rge8 {[%clk
0:00:20.5]} 31. Nxd8 {[%clk 0:00:36.9]} 31... Rxe7 {[%clk 0:00:19.3]} 32. Nxb7
{[%clk 0:00:35.1]} 32... Nb6 {[%clk 0:00:13.2]} 33. Nc5 {[%clk 0:00:29.5]} 33...
Nc4 {[%clk 0:00:12.6]} 34. b3 {[%clk 0:00:27.2]} 34... Nxe3 {[%clk 0:00:11.1]}
35. Rf2 {[%clk 0:00:24.6]} 35... Rg7 {[%clk 0:00:09]} 36. Ne6 {[%clk 0:00:22]}
36... Nf5 {[%clk 0:00:06.5]} 37. Nf4 {[%clk 0:00:19.2]} 37... g5 {[%clk
0:00:05.2]} 38. Ne2 {[%clk 0:00:17.8]} 38... Rf7 {[%clk 0:00:03.5]} 39. g3
{[%clk 0:00:15.6]} 39... Kg6 {[%clk 0:00:03.4]} 40. Kg2 {[%clk 0:00:13.8]} 40...
Ne7 {[%clk 0:00:02.2]} 41. Rxf7 {[%clk 0:00:12.4]} 41... Kxf7 {[%clk 0:00:02.1]}
42. Nc1 {[%clk 0:00:11.2]} 42... Kg6 {[%clk 0:00:02]} 43. Kf2 {[%clk 0:00:09.9]}
43... Nc8 {[%clk 0:00:01.6]} 44. h3 {[%clk 0:00:08.3]} 44... Nb6 {[%clk
0:00:01.5]} 45. g4 {[%clk 0:00:07.2]} 45... h4 {[%clk 0:00:00.7]} 46. Ke2 {[%clk
0:00:05.8]} 46... Kf6 {[%clk 0:00:00.6]} 47. Ke3 {[%clk 0:00:04.8]} 47... Nd7
{[%clk 0:00:00.1]} 48. Ne2 {[%clk 0:00:03.6]} 1-0

[Event "Live Chess"]
[Site "Chess.com"]
[Date "2024.06.02"]
[Round "-"]
[White "IgorSchukin"]
[Black "juniortay"]
[Result "0-1"]
[WhiteElo "1764"]
[BlackElo "2425"]
[TimeControl "300"]
[EndTime "20:03:38 PDT"]
[Termination "juniortay won on time"]

1. e4 {[%clk 0:04:51.2]} 1... e5 {[%clk 0:04:59]} 2. Nf3 {[%clk 0:04:49.9]} 2...
Nf6 {[%clk 0:04:58.9]} 3. Nc3 {[%clk 0:04:49.2]} 3... Nc6 {[%clk 0:04:58.2]} 4.
d4 {[%clk 0:04:48.7]} 4... exd4 {[%clk 0:04:58.1]} 5. Nxd4 {[%clk 0:04:47.8]}
5... Bb4 {[%clk 0:04:57.8]} 6. Nxc6 {[%clk 0:04:47]} 6... bxc6 {[%clk
0:04:57.7]} 7. Bd3 {[%clk 0:04:46]} 7... d6 {[%clk 0:04:57.3]} 8. O-O {[%clk
0:04:44.5]} 8... Ng4 {[%clk 0:04:57]} 9. Bf4 {[%clk 0:04:37.9]} 9... g5 {[%clk
0:04:55.5]} 10. Bg3 {[%clk 0:04:24.8]} 10... h5 {[%clk 0:04:54.2]} 11. h3 {[%clk
0:04:22.8]} 11... h4 {[%clk 0:04:53.7]} 12. Bh2 {[%clk 0:04:18.7]} 12... Nxh2
{[%clk 0:04:45.6]} 13. Kxh2 {[%clk 0:04:17.2]} 13... Bc5 {[%clk 0:04:40]} 14. f4
{[%clk 0:04:11.5]} 14... gxf4 {[%clk 0:04:28.6]} 15. Rxf4 {[%clk 0:04:09.4]}
15... Qe7 {[%clk 0:04:28.2]} 16. Bc4 {[%clk 0:03:40.2]} 16... Be6 {[%clk
0:04:19.8]} 17. Bxe6 {[%clk 0:03:32.3]} 17... fxe6 {[%clk 0:04:16.5]} 18. Na4
{[%clk 0:03:17.9]} 18... Qg5 {[%clk 0:03:59.9]} 19. Qf3 {[%clk 0:03:02.3]} 19...
Bd4 {[%clk 0:03:56.5]} 20. Rg4 {[%clk 0:02:59]} 20... Be5+ {[%clk 0:03:51.7]}
21. Kh1 {[%clk 0:02:57.6]} 21... Qd2 {[%clk 0:03:49.8]} 22. Rf1 {[%clk
0:02:46.2]} 22... O-O-O {[%clk 0:03:47]} 23. Qf2 {[%clk 0:02:35.1]} 23... Rhf8
{[%clk 0:03:11.7]} 24. Qe1 {[%clk 0:01:18]} 24... Qxc2 {[%clk 0:03:04]} 25. b3
{[%clk 0:00:49.3]} 25... Bg3 {[%clk 0:03:02.3]} 26. Qa1 {[%clk 0:00:23.6]} 26...
Rf2 {[%clk 0:02:55.5]} 27. Rxf2 {[%clk 0:00:21.8]} 27... Qxf2 {[%clk 0:02:53.7]}
28. Nc3 {[%clk 0:00:12.7]} 28... Rf8 {[%clk 0:02:51.6]} 29. Qg1 {[%clk
0:00:02.7]} 29... Qd2 {[%clk 0:02:38.9]} 0-1

[Event "Live Chess"]
[Site "Chess.com"]
[Date "2024.06.02"]
[Round "-"]
[White "GwaryTek"]
[Black "NeilDruggan73"]
[Result "0-1"]
[WhiteElo "1897"]
[BlackElo "1790"]
[TimeControl "300"]
[EndTime "20:04:44 PDT"]
[Termination "NeilDruggan73 won on time"]

1. d4 {[%clk 0:04:54.3]} 1... Nf6 {[%clk 0:04:57.8]} 2. c4 {[%clk 0:04:52.6]}
2... g6 {[%clk 0:04:56.8]} 3. Nc3 {[%clk 0:04:50.7]} 3... Bg7 {[%clk 0:04:55.9]}
4. e4 {[%clk 0:04:49.6]} 4... d6 {[%clk 0:04:54.9]} 5. f3 {[%clk 0:04:48.8]}
5... e5 {[%clk 0:04:53.8]} 6. d5 {[%clk 0:04:46.8]} 6... O-O {[%clk 0:04:51.7]}
7. Be3 {[%clk 0:04:44.6]} 7... b6 {[%clk 0:04:47]} 8. Bd3 {[%clk 0:04:42.2]}
8... Nh5 {[%clk 0:04:42.3]} 9. Nge2 {[%clk 0:04:40.9]} 9... h6 {[%clk
0:04:40.3]} 10. Qd2 {[%clk 0:04:39.3]} 10... Kh7 {[%clk 0:04:38.3]} 11. O-O
{[%clk 0:04:37.5]} 11... Na6 {[%clk 0:04:35.4]} 12. a3 {[%clk 0:04:34.6]} 12...
Nc5 {[%clk 0:04:34]} 13. Bc2 {[%clk 0:04:33.1]} 13... f5 {[%clk 0:04:31.1]} 14.
exf5 {[%clk 0:04:31.9]} 14... Bxf5 {[%clk 0:04:19.1]} 15. b4 {[%clk 0:04:22.2]}
15... Bxc2 {[%clk 0:04:00.5]} 16. bxc5 {[%clk 0:03:57.2]} 16... Be4 {[%clk
0:03:52.2]} 17. Nxe4 {[%clk 0:03:49.9]} 17... Nf4 {[%clk 0:03:46.9]} 18. c6
{[%clk 0:03:15.5]} 18... g5 {[%clk 0:03:41.2]} 19. a4 {[%clk 0:03:03.2]} 19...
a5 {[%clk 0:03:37.9]} 20. Qc2 {[%clk 0:02:44]} 20... Kh8 {[%clk 0:03:33.2]} 21.
g3 {[%clk 0:02:28.9]} 21... Nh3+ {[%clk 0:02:54.9]} 22. Kg2 {[%clk 0:02:26.1]}
22... Qc8 {[%clk 0:02:54.4]} 23. Nf2 {[%clk 0:02:02.2]} 23... Nxf2 {[%clk
0:02:49.4]} 24. Rxf2 {[%clk 0:01:58.1]} 24... Qf5 {[%clk 0:02:47.4]} 25. Qxf5
{[%clk 0:01:55.2]} 25... Rxf5 {[%clk 0:02:46]} 26. Raf1 {[%clk 0:01:47.9]} 26...
Raf8 {[%clk 0:02:43.1]} 27. Nc3 {[%clk 0:01:46.7]} 27... R5f7 {[%clk 0:02:37.9]}
28. Ne4 {[%clk 0:01:45.1]} 28... Kh7 {[%clk 0:02:35]} 29. Bxg5 {[%clk 0:01:38]}
29... hxg5 {[%clk 0:02:32.2]} 30. Nxg5+ {[%clk 0:01:36.6]} 30... Kg6 {[%clk
0:02:30.4]} 31. Nxf7 {[%clk 0:01:35.2]} 31... Rxf7 {[%clk 0:02:29.8]} 32. f4
{[%clk 0:01:32.7]} 32... exf4 {[%clk 0:02:28.2]} 33. Rxf4 {[%clk 0:01:31.3]}
33... Re7 {[%clk 0:02:23.5]} 34. Rg4+ {[%clk 0:01:30.1]} 34... Kh5 {[%clk
0:02:14.1]} 35. Kh3 {[%clk 0:00:46.5]} 35... Be5 {[%clk 0:01:57.3]} 36. Rf5+
{[%clk 0:00:42.8]} 36... Kh6 {[%clk 0:01:56.3]} 37. Rf8 {[%clk 0:00:35.9]} 37...
Kh7 {[%clk 0:01:51.6]} 38. Rd8 {[%clk 0:00:33.2]} 38... Kh6 {[%clk 0:00:58.7]}
39. Rd7 {[%clk 0:00:25.9]} 39... Re8 {[%clk 0:00:54]} 40. Rxc7 {[%clk
0:00:22.3]} 40... Bf6 {[%clk 0:00:47.2]} 41. Rf7 {[%clk 0:00:18.5]} 41... Bg5
{[%clk 0:00:41.4]} 42. c7 {[%clk 0:00:16.2]} 42... Rh8 {[%clk 0:00:38.8]} 43.
Rxg5 {[%clk 0:00:09.6]} 43... Kxg5+ {[%clk 0:00:37.2]} 44. Kg2 {[%clk
0:00:09.2]} 44... Rc8 {[%clk 0:00:35.9]} 45. Rd7 {[%clk 0:00:08.2]} 45... Kf5
{[%clk 0:00:34.4]} 46. h4 {[%clk 0:00:06.9]} 46... Ke5 {[%clk 0:00:31.8]} 47. h5
{[%clk 0:00:05.1]} 47... Kd4 {[%clk 0:00:31.3]} 48. g4 {[%clk 0:00:03.9]} 48...
Kxc4 {[%clk 0:00:31]} 49. h6 {[%clk 0:00:03.4]} 49... Kxd5 {[%clk 0:00:30.6]}
50. h7 {[%clk 0:00:02.9]} 50... Ke6 {[%clk 0:00:30.2]} 51. Rg7 {[%clk
0:00:01.6]} 51... Kf6 {[%clk 0:00:25.5]} 52. Rg8 {[%clk 0:00:00.9]} 52... Rxc7
{[%clk 0:00:23.8]} 53. h8=Q+ {[%clk 0:00:00.8]} 53... Ke6 {[%clk 0:00:21.4]} 0-1

[Event "Live Chess"]
[Site "Chess.com"]
[Date "2024.06.02"]
[Round "-"]
[White "MagnersCarlsberg2870"]
[Black "Dhaydon19"]
[Result "0-1"]
[WhiteElo "1822"]
[BlackElo "2686"]
[TimeControl "300"]
[EndTime "20:04:45 PDT"]
[Termination "Dhaydon19 won by resignation"]

1. d4 {[%clk 0:04:56.9]} 1... c6 {[%clk 0:04:58.9]} 2. e4 {[%clk 0:04:51.2]}
2... d5 {[%clk 0:04:56.9]} 3. f3 {[%clk 0:04:50.3]} 3... dxe4 {[%clk 0:04:53.2]}
4. fxe4 {[%clk 0:04:49.2]} 4... e5 {[%clk 0:04:52.8]} 5. Nf3 {[%clk 0:04:46.1]}
5... exd4 {[%clk 0:04:52.1]} 6. Nxd4 {[%clk 0:04:44.6]} 6... Nf6 {[%clk
0:04:50.6]} 7. Bg5 {[%clk 0:04:42.1]} 7... Qa5+ {[%clk 0:04:48.2]} 8. Bd2 {[%clk
0:04:38.4]} 8... Qe5 {[%clk 0:04:46.2]} 9. Nf3 {[%clk 0:04:29.4]} 9... Qxe4+
{[%clk 0:04:44.5]} 10. Be2 {[%clk 0:04:28.5]} 10... Be7 {[%clk 0:04:43.7]} 11.
O-O {[%clk 0:04:26.9]} 11... O-O {[%clk 0:04:41.6]} 12. Bd3 {[%clk 0:04:25.5]}
12... Qg4 {[%clk 0:04:35.2]} 13. Nc3 {[%clk 0:04:00.9]} 13... Nbd7 {[%clk
0:04:32.4]} 14. Qe2 {[%clk 0:03:50.1]} 14... Bc5+ {[%clk 0:04:28]} 15. Kh1
{[%clk 0:03:48.5]} 15... Re8 {[%clk 0:04:27.3]} 16. Qd1 {[%clk 0:03:39.8]} 16...
Nf8 {[%clk 0:04:25.9]} 17. Ne2 {[%clk 0:03:21.6]} 17... Bf5 {[%clk 0:04:18.2]}
18. h3 {[%clk 0:03:12.6]} 18... Qh5 {[%clk 0:04:14.6]} 19. Ng3 {[%clk
0:03:03.9]} 19... Qg6 {[%clk 0:04:13.3]} 20. Bxf5 {[%clk 0:03:02.4]} 20... Qxg3
{[%clk 0:04:11.4]} 21. Be1 {[%clk 0:02:53.4]} 21... Qc7 {[%clk 0:04:05.8]} 22.
Ng5 {[%clk 0:02:40.2]} 22... h6 {[%clk 0:04:02.2]} 23. Bc3 {[%clk 0:02:17.5]}
23... hxg5 {[%clk 0:03:47.8]} 24. Bxf6 {[%clk 0:02:16.3]} 24... gxf6 {[%clk
0:03:46.7]} 25. Qh5 {[%clk 0:02:15.5]} 25... Qg3 {[%clk 0:03:43.2]} 26. Rad1
{[%clk 0:01:34.8]} 26... Rad8 {[%clk 0:03:33.4]} 27. Bd3 {[%clk 0:01:22.6]}
27... Bd6 {[%clk 0:03:28.6]} 0-1

[Event "Live Chess"]
[Site "Chess.com"]
[Date "2024.06.02"]
[Round "-"]
[White "IgorSchukin"]
[Black "RafaelRony"]
[Result "1-0"]
[WhiteElo "1764"]
[BlackElo "1063"]
[TimeControl "300"]
[EndTime "20:06:26 PDT"]
[Termination "IgorSchukin won by resignation"]

1. e4 {[%clk 0:04:57.2]} 1... c5 {[%clk 0:04:56]} 2. a3 {[%clk 0:04:55.7]} 2...
d5 {[%clk 0:04:48.1]} 3. exd5 {[%clk 0:04:54]} 3... Nf6 {[%clk 0:04:45.4]} 4. c4
{[%clk 0:04:51.8]} 4... e6 {[%clk 0:04:42.1]} 5. dxe6 {[%clk 0:04:50.2]} 5...
Bxe6 {[%clk 0:04:40]} 6. Nc3 {[%clk 0:04:49]} 6... Be7 {[%clk 0:04:34.3]} 7. d3
{[%clk 0:04:48.1]} 7... O-O {[%clk 0:04:31.3]} 8. g3 {[%clk 0:04:47.4]} 8... Nc6
{[%clk 0:04:28.4]} 9. Bg2 {[%clk 0:04:46.3]} 9... Rc8 {[%clk 0:04:27.2]} 10.
Nge2 {[%clk 0:04:43.4]} 10... a6 {[%clk 0:04:26]} 11. O-O {[%clk 0:04:41.1]}
11... Qc7 {[%clk 0:04:21.2]} 12. Bf4 {[%clk 0:04:39.5]} 12... Bd6 {[%clk
0:04:19.2]} 13. Bxd6 {[%clk 0:04:37.1]} 13... Qxd6 {[%clk 0:04:17.2]} 14. Nf4
{[%clk 0:04:35.7]} 14... Bf5 {[%clk 0:04:09]} 15. Ncd5 {[%clk 0:04:31.9]} 15...
Nd4 {[%clk 0:03:53.2]} 16. Nxf6+ {[%clk 0:04:28]} 16... Qxf6 {[%clk 0:03:48.4]}
17. Bxb7 {[%clk 0:04:25.9]} 17... Rb8 {[%clk 0:03:47.3]} 18. Nd5 {[%clk
0:04:01.7]} 18... Qg6 {[%clk 0:03:25.8]} 19. Ne7+ {[%clk 0:03:59.8]} 1-0

[Event "Live Chess"]
[Site "Chess.com"]
[Date "2024.06.02"]
[Round "-"]
[White "Mikhail_Golubev"]
[Black "ShanthamGrarks"]
[Result "1/2-1/2"]
[WhiteElo "2545"]
[BlackElo "1906"]
[TimeControl "300"]
[EndTime "20:07:39 PDT"]
[Termination "Game drawn by repetition"]

1. e4 {[%clk 0:04:57.7]} 1... e5 {[%clk 0:04:55.3]} 2. Nf3 {[%clk 0:04:56.4]}
2... d5 {[%clk 0:04:54.9]} 3. d3 {[%clk 0:04:51.8]} 3... dxe4 {[%clk 0:04:51.5]}
4. dxe4 {[%clk 0:04:51.7]} 4... Qxd1+ {[%clk 0:04:49.3]} 5. Kxd1 {[%clk
0:04:50.8]} 5... f6 {[%clk 0:04:48.8]} 6. Be3 {[%clk 0:04:45.6]} 6... Be6 {[%clk
0:04:44.1]} 7. Nbd2 {[%clk 0:04:43.6]} 7... Nd7 {[%clk 0:04:43.3]} 8. Bc4 {[%clk
0:04:39.4]} 8... Bxc4 {[%clk 0:04:39.4]} 9. Nxc4 {[%clk 0:04:39.3]} 9... Bc5
{[%clk 0:04:37.4]} 10. Ke2 {[%clk 0:04:32.9]} 10... O-O-O {[%clk 0:04:34.1]} 11.
Rhd1 {[%clk 0:04:22.1]} 11... Bxe3 {[%clk 0:04:31.7]} 12. Nxe3 {[%clk
0:04:13.2]} 12... Ne7 {[%clk 0:04:31.1]} 13. Nh4 {[%clk 0:04:07.6]} 13... g6
{[%clk 0:04:27.9]} 14. Rd2 {[%clk 0:03:41.4]} 14... Nb6 {[%clk 0:04:24.7]} 15.
Rad1 {[%clk 0:03:35.7]} 15... Rxd2+ {[%clk 0:04:21.9]} 16. Rxd2 {[%clk
0:03:35.6]} 16... Rd8 {[%clk 0:04:12.4]} 17. Nf3 {[%clk 0:03:32.4]} 17... Nc6
{[%clk 0:04:05.3]} 18. b3 {[%clk 0:02:52.1]} 18... Rxd2+ {[%clk 0:04:01.9]} 19.
Kxd2 {[%clk 0:02:46]} 19... Kd7 {[%clk 0:04:01.5]} 20. c4 {[%clk 0:02:36.4]}
20... Ne7 {[%clk 0:03:53.2]} 21. c5 {[%clk 0:02:24.1]} 21... Nbc8 {[%clk
0:03:50.3]} 22. Kc3 {[%clk 0:02:16.3]} 22... c6 {[%clk 0:03:48.4]} 23. Nc4
{[%clk 0:02:09.1]} 23... Ke6 {[%clk 0:03:41.3]} 24. b4 {[%clk 0:01:59.2]} 24...
b5 {[%clk 0:03:39.5]} 25. cxb6 {[%clk 0:01:56.9]} 25... axb6 {[%clk 0:03:38.6]}
26. Ne1 {[%clk 0:01:46.9]} 26... b5 {[%clk 0:03:35.4]} 27. Na5 {[%clk
0:01:35.6]} 27... Nb6 {[%clk 0:03:27.9]} 28. Nd3 {[%clk 0:01:34.3]} 28... Na4+
{[%clk 0:03:26.8]} 29. Kb3 {[%clk 0:01:32.9]} 29... Kd6 {[%clk 0:03:20.8]} 30.
Nb7+ {[%clk 0:01:31]} 30... Kc7 {[%clk 0:03:17.6]} 31. Nbc5 {[%clk 0:01:30.1]}
31... Nxc5+ {[%clk 0:03:16.3]} 32. Nxc5 {[%clk 0:01:30]} 32... Kd6 {[%clk
0:03:11.8]} 33. a4 {[%clk 0:01:25]} 33... bxa4+ {[%clk 0:03:08.8]} 34. Kxa4
{[%clk 0:01:24.9]} 34... Nc8 {[%clk 0:03:07.4]} 35. Ka5 {[%clk 0:01:22]} 35...
Na7 {[%clk 0:03:06]} 36. Kb6 {[%clk 0:01:18.4]} 36... Nb5 {[%clk 0:03:04.4]} 37.
Nb7+ {[%clk 0:01:12.5]} 37... Kd7 {[%clk 0:03:01.8]} 38. Kc5 {[%clk 0:00:58.1]}
38... Nc3 {[%clk 0:02:56.2]} 39. f3 {[%clk 0:00:53.1]} 39... Kc7 {[%clk
0:02:47.7]} 40. Na5 {[%clk 0:00:50.6]} 40... Na4+ {[%clk 0:02:46.6]} 41. Kc4
{[%clk 0:00:50.1]} 41... Kb6 {[%clk 0:02:44.4]} 42. Nb3 {[%clk 0:00:47.3]} 42...
Nb2+ {[%clk 0:02:42.9]} 43. Kc3 {[%clk 0:00:45.8]} 43... Nd1+ {[%clk 0:02:41.9]}
44. Kd2 {[%clk 0:00:43.3]} 44... Nb2 {[%clk 0:02:40.7]} 45. Kc3 {[%clk
0:00:41.6]} 45... Nd1+ {[%clk 0:02:39.6]} 46. Kd2 {[%clk 0:00:40.7]} 46... Nb2
{[%clk 0:02:38.7]} 47. Kc3 {[%clk 0:00:40.4]} 1/2-1/2